fUST/lending_fUST_20260509
["ID","MTS","AMOUNT","RATE_DAILY","PERIOD"]
[421871784,1778256644000,-500.0,0.00013972,2]
[421871786,1778256644000,-1806.92,0.00013972,2]
[421871787,1778256644000,-687.72,0.00013972,2]
[421871722,1778256644000,-500.0,0.00013698,2]
[421871759,1778256644000,-9513.44386126,0.00013922,2]
[421871760,1778256644000,-500.0,0.00013972,2]
[421871785,1778256644000,-500.0,0.00013972,2]
[421871754,1778256644000,-151.0,0.00013724,2]
[421871724,1778256644000,-500.0,0.00013698,2]
[421871730,1778256644000,-823.49,0.00013698,2]
[421871732,1778256644000,-514.5,0.00013698,2]
[421871736,1778256644000,-500.0,0.00013698,2]
[421871734,1778256644000,-500.0,0.00013698,2]
[421871737,1778256644000,-500.0,0.00013698,2]
[421871735,1778256644000,-751.41,0.00013698,2]
[421871758,1778256644000,-486.092,0.00013882,2]
[421871740,1778256644000,-500.0,0.00013698,2]
[421871742,1778256644000,-1064.08,0.00013698,2]
[421871739,1778256644000,-687.72,0.00013698,2]
[421871741,1778256644000,-500.0,0.00013698,2]
[421871738,1778256644000,-1806.92,0.00013698,2]
[421871733,1778256644000,-517.9,0.00013698,2]
[421871743,1778256644000,-500.0,0.00013698,2]
[421871744,1778256644000,-1754.58,0.00013698,2]
[421871753,1778256644000,-456.3275979,0.00013724,2]
[421871749,1778256644000,-998.0,0.00013699,2]
[421871751,1778256644000,-486.84,0.00013699,2]
[421871748,1778256644000,-1627.09,0.00013698,2]
[421871755,1778256644000,-325.7699083,0.00013724,2]
[421871750,1778256644000,-1000.0,0.00013699,2]
[421871747,1778256644000,-1069.64,0.00013698,2]
[421871745,1778256644000,-500.0,0.00013698,2]
[421871757,1778256644000,-185.0,0.00013882,2]
[421871756,1778256644000,-14478.050865,0.00013813,2]
[421871746,1778256644000,-1847.77,0.00013698,2]
[421871752,1778256644000,-1000.0,0.00013699,2]
[421871831,1778256645000,-514.5,0.00014246,2]
[421871832,1778256645000,-500.0,0.00014246,2]
[421871827,1778256645000,-1604.45,0.00014246,2]
[421871833,1778256645000,-751.41,0.00014246,2]
[421871842,1778256645000,-1754.58,0.00014246,2]
[421871820,1778256645000,-926.62,0.00014246,2]
[421871824,1778256645000,-1323.29,0.00014246,2]
[421871819,1778256645000,-500.0,0.00014246,2]
[421871818,1778256645000,-557.81,0.00014246,2]
[421871821,1778256645000,-500.0,0.00014246,2]
[421871825,1778256645000,-1331.21,0.00014246,2]
[421871830,1778256645000,-430.95,0.00014246,2]
[421871843,1778256645000,-1847.77,0.00014246,2]
[421871826,1778256645000,-8039.35,0.00014246,2]
[421871829,1778256645000,-823.49,0.00014246,2]
[421871834,1778256645000,-500.0,0.00014246,2]
[421871839,1778256645000,-500.0,0.00014246,2]
[421871836,1778256645000,-1806.92,0.00014246,2]
[421871835,1778256645000,-500.0,0.00014246,2]
[421871837,1778256645000,-687.72,0.00014246,2]
[421871847,1778256645000,-557.5788265,0.00014283,2]
[421871845,1778256645000,-1627.09,0.00014246,2]
[421871844,1778256645000,-1069.64,0.00014246,2]
[421871846,1778256645000,-11564.86804723,0.00014249,2]
[421871838,1778256645000,-500.0,0.00014246,2]
[421871822,1778256645000,-500.0,0.00014246,2]
[421871828,1778256645000,-500.0,0.00014246,2]
[421871817,1778256645000,-500.0,0.00014246,2]
[421871807,1778256645000,-537.6845,0.00014228,2]
[421871811,1778256645000,-500.0,0.00014246,2]
[421871788,1778256645000,-500.0,0.00013972,2]
[421871789,1778256645000,-500.0,0.00013972,2]
[421871796,1778256645000,-1627.09,0.00013972,2]
[421871794,1778256645000,-1847.77,0.00013972,2]
[421871791,1778256645000,-500.0,0.00013972,2]
[421871790,1778256645000,-1064.08,0.00013972,2]
[421871793,1778256645000,-187.54,0.00013972,2]
[421871795,1778256645000,-1069.64,0.00013972,2]
[421871792,1778256645000,-1754.58,0.00013972,2]
[421871797,1778256645000,-822.0,0.00013993,2]
[421871800,1778256645000,-258.68,0.000141,2]
[421871799,1778256645000,-811.0,0.0001406,2]
[421871816,1778256645000,-206.82,0.00014246,2]
[421871801,1778256645000,-1414.362,0.00014217,2]
[421871804,1778256645000,-162.380719,0.00014228,2]
[421871808,1778256645000,-537.6845,0.00014228,2]
[421871798,1778256645000,-151.0,0.00014,2]
[421871806,1778256645000,-151.0,0.00014228,2]
[421871809,1778256645000,-500.0,0.00014228,2]
[421871802,1778256645000,-649.823,0.00014217,2]
[421871805,1778256645000,-445.202766,0.00014228,2]
[421871810,1778256645000,-738.82,0.00014244,2]
[421871812,1778256645000,-500.0,0.00014246,2]
[421871815,1778256645000,-500.0,0.00014246,2]
[421871813,1778256645000,-500.0,0.00014246,2]
[421871814,1778256645000,-500.0,0.00014246,2]
[421871803,1778256645000,-2208.121,0.00014217,2]
[421871840,1778256645000,-1064.08,0.00014246,2]
[421871823,1778256645000,-500.0,0.00014246,2]
[421871849,1778256645000,-16802.519199,0.00014313,2]
[421871886,1778256645000,-529.2,0.0001452,2]
[421871878,1778256645000,-514.5,0.0001452,2]
[421871887,1778256645000,-1064.08,0.0001452,2]
[421871880,1778256645000,-751.41,0.0001452,2]
[421871885,1778256645000,-254.5,0.0001452,2]
[421871882,1778256645000,-167.92,0.0001452,2]
[421871884,1778256645000,-687.72,0.0001452,2]
[421871881,1778256645000,-500.0,0.0001452,2]
[421871888,1778256645000,-500.0,0.0001452,2]
[421871890,1778256645000,-1847.77,0.0001452,2]
[421871891,1778256645000,-1069.64,0.0001452,2]
[421871899,1778256645000,-5172.40741914,0.00014612,2]
[421871892,1778256645000,-1627.09,0.0001452,2]
[421871889,1778256645000,-1754.58,0.0001452,2]
[421871897,1778256645000,-151.0,0.00014585,2]
[421871898,1778256645000,-300.0,0.000146,3]
[421871893,1778256645000,-668.65185757,0.00014558,2]
[421871896,1778256645000,-324.6419491,0.00014585,2]
[421871894,1778256645000,-12639.70298916,0.00014576,2]
[421871901,1778256645000,-420.0,0.0001464,2]
[421871900,1778256645000,-693.3919763,0.00014613,2]
[421871904,1778256645000,-173.37243775,0.00014685,30]
[421871902,1778256645000,-719.04747942,0.00014668,2]
[421871905,1778256645000,-211.07,0.000147,2]
[421871906,1778256645000,-1414220.27124784,0.000147,5]
[421871903,1778256645000,-216.68363186,0.00014685,30]
[421871841,1778256645000,-500.0,0.00014246,2]
[421871877,1778256645000,-823.49,0.0001452,2]
[421871883,1778256645000,-1806.92,0.0001452,2]
[421871895,1778256645000,-151.0,0.00014585,2]
[421871879,1778256645000,-442.2,0.0001452,2]
[421871860,1778256645000,-500.0,0.0001452,2]
[421871851,1778256645000,-578.20924308,0.00014338,2]
[421871848,1778256645000,-151.0,0.000143,2]
[421871852,1778256645000,-4578.04,0.00014349,2]
[421871850,1778256645000,-5352.087956,0.00014313,7]
[421871854,1778256645000,-822.0,0.00014393,2]
[421871856,1778256645000,-521.75179167,0.00014439,2]
[421871858,1778256645000,-644.79446246,0.00014503,2]
[421871859,1778256645000,-600.0,0.00014505,2]
[421871853,1778256645000,-166.62909463,0.00014362,2]
[421871857,1778256645000,-621.78829552,0.00014448,2]
[421871862,1778256645000,-500.0,0.0001452,2]
[421871861,1778256645000,-500.0,0.0001452,2]
[421871855,1778256645000,-599.60298507,0.00014393,2]
[421871870,1778256645000,-500.0,0.0001452,2]
[421871875,1778256645000,-1604.45,0.0001452,2]
[421871874,1778256645000,-8039.35,0.0001452,2]
[421871872,1778256645000,-1323.29,0.0001452,2]
[421871863,1778256645000,-254.66529584,0.0001452,2]
[421871867,1778256645000,-500.0,0.0001452,2]
[421871873,1778256645000,-1331.21,0.0001452,2]
[421871869,1778256645000,-500.0,0.0001452,2]
[421871865,1778256645000,-500.0,0.0001452,2]
[421871864,1778256645000,-500.0,0.0001452,2]
[421871866,1778256645000,-557.81,0.0001452,2]
[421871871,1778256645000,-500.0,0.0001452,2]
[421871868,1778256645000,-926.62,0.0001452,2]
[421871876,1778256645000,-500.0,0.0001452,2]
[421871910,1778256646000,-5000.0,0.00010848,2]
[421871917,1778256646000,-500.0,0.00011232,2]
[421871915,1778256646000,-500.0,0.00010958,2]
[421871916,1778256646000,-500.0,0.00011232,2]
[421871918,1778256646000,-432.8598208,0.00011232,2]
[421871912,1778256646000,-500.0,0.00010958,2]
[421871914,1778256646000,-500.0,0.00010958,2]
[421871946,1778256775000,1000.0,0.00013698,120]
[421871948,1778256776000,1000.0,0.00013698,120]
[421871947,1778256776000,1000.0,0.00013698,120]
[421871949,1778256776000,465.51,0.00013698,120]
[421871964,1778257009000,1000.0,0.00013698,120]
[421871963,1778257009000,1000.0,0.00013698,120]
[421871962,1778257009000,1000.0,0.00013698,120]
[421871966,1778257010000,431.3,0.00013698,120]
[421871965,1778257010000,1000.0,0.00013698,120]
[421871967,1778257272000,738.55,0.00013698,120]
[421872006,1778257835000,-5000.0,9.618e-05,2]
[421872007,1778257835000,-515.51412781,9.715e-05,2]
[421872009,1778257835000,-151.0,0.00010492,2]
[421872012,1778257835000,-500.0,0.00010857,2]
[421872008,1778257835000,-331.13006498,9.764e-05,2]
[421872011,1778257835000,-500.0,0.00010857,2]
[421872013,1778257835000,-500.0,0.00010857,2]
[421872014,1778257835000,-500.0,0.00010857,2]
[421872015,1778257835000,-50.90396093,0.00010857,2]
[421872010,1778257835000,-300.0,0.00010857,2]
[421872057,1778257838000,-500.0,0.00010857,2]
[421872063,1778257838000,-500.0,0.00010857,2]
[421872053,1778257838000,-500.0,0.00010857,2]
[421872051,1778257838000,-500.0,0.00010857,2]
[421872049,1778257838000,-500.0,0.00010857,2]
[421872038,1778257838000,-500.0,0.00010857,2]
[421872036,1778257838000,-500.0,0.00010857,2]
[421872034,1778257838000,-449.09603907,0.00010857,2]
[421872045,1778257838000,-500.0,0.00010857,2]
[421872044,1778257838000,-500.0,0.00010857,2]
[421872042,1778257838000,-500.0,0.00010857,2]
[421872040,1778257838000,-500.0,0.00010857,2]
[421872061,1778257838000,-500.0,0.00010857,2]
[421872047,1778257838000,-500.0,0.00010857,2]
[421872055,1778257838000,-500.0,0.00010857,2]
[421872087,1778257838000,-160.3995877,0.00010958,2]
[421872066,1778257838000,-376.81766124,0.00010857,2]
[421872065,1778257838000,-500.0,0.00010857,2]
[421872091,1778257838000,-500.0,0.00010958,2]
[421872093,1778257838000,-500.0,0.00010958,2]
[421872083,1778257838000,-779.04987159,0.00010957,2]
[421872085,1778257838000,-462.29531161,0.00010957,2]
[421872079,1778257838000,-200.0,0.00010933,2]
[421872089,1778257838000,-500.0,0.00010958,2]
[421872081,1778257838000,-670.124,0.00010957,2]
[421872075,1778257838000,-126839.09407802,0.00010858,2]
[421872069,1778257838000,-500.0,0.00010857,2]
[421872071,1778257838000,-500.0,0.00010857,2]
[421872059,1778257838000,-500.0,0.00010857,2]
[421872073,1778257838000,-50859.61680996,0.00010858,2]
[421872077,1778257838000,-5885.24641141,0.000109,2]
[421872141,1778257839000,-1468.56,0.00010958,2]
[421872129,1778257839000,-500.0,0.00010958,2]
[421872128,1778257839000,-500.0,0.00010958,2]
[421872130,1778257839000,-1281.13,0.00010958,2]
[421872131,1778257839000,-500.0,0.00010958,2]
[421872132,1778257839000,-1058.63,0.00010958,2]
[421872136,1778257839000,-500.0,0.00010958,2]
[421872137,1778257839000,-799.81,0.00010958,2]
[421872138,1778257839000,-7651.3,0.00010958,2]
[421872140,1778257839000,-500.0,0.00010958,2]
[421872126,1778257839000,-500.0,0.00010958,2]
[421872142,1778257839000,-500.0,0.00010958,2]
[421872149,1778257839000,-620.56,0.00010958,2]
[421872139,1778257839000,-500.0,0.00010958,2]
[421872146,1778257839000,-518.01,0.00010958,2]
[421872144,1778257839000,-500.0,0.00010958,2]
[421872145,1778257839000,-500.0,0.00010958,2]
[421872143,1778257839000,-500.0,0.00010958,2]
[421872123,1778257839000,-500.0,0.00010958,2]
[421872159,1778257839000,-500.0,0.00010958,2]
[421872150,1778257839000,-500.0,0.00010958,2]
[421872148,1778257839000,-500.0,0.00010958,2]
[421872152,1778257839000,-1610.63,0.00010958,2]
[421872151,1778257839000,-790.35,0.00010958,2]
[421872154,1778257839000,-500.0,0.00010958,2]
[421872156,1778257839000,-500.0,0.00010958,2]
[421872158,1778257839000,-1487.62,0.00010958,2]
[421872147,1778257839000,-759.64,0.00010958,2]
[421872125,1778257839000,-565.24,0.00010958,2]
[421872117,1778257839000,-500.0,0.00010958,2]
[421872135,1778257839000,-500.0,0.00010958,2]
[421872157,1778257839000,-500.0,0.00010958,2]
[421872095,1778257839000,-500.0,0.00010958,2]
[421872097,1778257839000,-500.0,0.00010958,2]
[421872099,1778257839000,-500.0,0.00010958,2]
[421872109,1778257839000,-500.0,0.00010958,2]
[421872110,1778257839000,-500.0,0.00010958,2]
[421872111,1778257839000,-500.0,0.00010958,2]
[421872100,1778257839000,-500.0,0.00010958,2]
[421872102,1778257839000,-500.0,0.00010958,2]
[421872104,1778257839000,-500.0,0.00010958,2]
[421872105,1778257839000,-500.0,0.00010958,2]
[421872103,1778257839000,-500.0,0.00010958,2]
[421872106,1778257839000,-500.0,0.00010958,2]
[421872133,1778257839000,-1367.21,0.00010958,2]
[421872101,1778257839000,-485.57281504,0.00010958,2]
[421872108,1778257839000,-500.0,0.00010958,2]
[421872112,1778257839000,-500.0,0.00010958,2]
[421872116,1778257839000,-500.0,0.00010958,2]
[421872113,1778257839000,-500.0,0.00010958,2]
[421872114,1778257839000,-500.0,0.00010958,2]
[421872115,1778257839000,-500.0,0.00010958,2]
[421872121,1778257839000,-500.0,0.00010958,2]
[421872122,1778257839000,-500.0,0.00010958,2]
[421872120,1778257839000,-525.29,0.00010958,2]
[421872118,1778257839000,-500.0,0.00010958,2]
[421872119,1778257839000,-842.7674,0.00010958,2]
[421872124,1778257839000,-500.0,0.00010958,2]
[421872134,1778257839000,-500.0,0.00010958,2]
[421872107,1778257839000,-500.0,0.00010958,2]
[421872153,1778257839000,-500.0,0.00010958,2]
[421872127,1778257839000,-500.0,0.00010958,2]
[421872160,1778257839000,-1425.53,0.00010958,2]
[421872191,1778257839000,-300.0,0.00011176,2]
[421872189,1778257839000,-300.0,0.00011176,2]
[421872190,1778257839000,-300.0,0.00011176,2]
[421872192,1778257839000,-300.0,0.00011176,2]
[421872194,1778257839000,-300.0,0.00011176,2]
[421872195,1778257839000,-300.0,0.00011176,2]
[421872193,1778257839000,-300.0,0.00011176,2]
[421872210,1778257839000,-500.0,0.00011232,2]
[421872209,1778257839000,-500.0,0.00011232,2]
[421872208,1778257839000,-500.0,0.00011232,2]
[421872202,1778257839000,-500.0,0.00011232,2]
[421872205,1778257839000,-500.0,0.00011232,2]
[421872211,1778257839000,-500.0,0.00011232,2]
[421872188,1778257839000,-300.0,0.00011176,2]
[421872200,1778257839000,-500.0,0.00011232,2]
[421872203,1778257839000,-500.0,0.00011232,2]
[421872204,1778257839000,-500.0,0.00011232,2]
[421872207,1778257839000,-500.0,0.00011232,2]
[421872206,1778257839000,-500.0,0.00011232,2]
[421872213,1778257839000,-500.0,0.00011232,2]
[421872214,1778257839000,-500.0,0.00011232,2]
[421872217,1778257839000,-500.0,0.00011232,2]
[421872216,1778257839000,-500.0,0.00011232,2]
[421872215,1778257839000,-500.0,0.00011232,2]
[421872218,1778257839000,-500.0,0.00011232,2]
[421872219,1778257839000,-500.0,0.00011232,2]
[421872220,1778257839000,-500.0,0.00011232,2]
[421872155,1778257839000,-500.0,0.00010958,2]
[421872212,1778257839000,-500.0,0.00011232,2]
[421872199,1778257839000,-500.0,0.00011232,2]
[421872201,1778257839000,-500.0,0.00011232,2]
[421872197,1778257839000,-500.0,0.00011232,2]
[421872163,1778257839000,-1359.66,0.00010958,2]
[421872198,1778257839000,-500.0,0.00011232,2]
[421872162,1778257839000,-500.0,0.00010958,2]
[421872167,1778257839000,-500.0,0.00010958,2]
[421872170,1778257839000,-213.46,0.00010959,2]
[421872166,1778257839000,-500.0,0.00010958,2]
[421872164,1778257839000,-922.51,0.00010958,2]
[421872172,1778257839000,-170.44,0.00010959,2]
[421872165,1778257839000,-500.0,0.00010958,2]
[421872171,1778257839000,-213.46,0.00010959,2]
[421872169,1778257839000,-5699.47785578,0.00010958,2]
[421872168,1778257839000,-500.0,0.00010958,2]
[421872174,1778257839000,-848.94197228,0.00011,2]
[421872173,1778257839000,-170.45,0.00010959,2]
[421872161,1778257839000,-503.3,0.00010958,2]
[421872179,1778257839000,-151.52395367,0.00011,2]
[421872186,1778257839000,-300.0,0.00011176,2]
[421872184,1778257839000,-300.0,0.00011176,2]
[421872187,1778257839000,-300.0,0.00011176,2]
[421872176,1778257839000,-2269.92229816,0.00011,2]
[421872181,1778257839000,-154.82277606,0.00011,2]
[421872183,1778257839000,-300.0,0.00011176,2]
[421872175,1778257839000,-2055.62603258,0.00011,2]
[421872196,1778257839000,-300.0,0.00011176,2]
[421872185,1778257839000,-300.0,0.00011176,2]
[421872177,1778257839000,-1881.92143561,0.00011,2]
[421872182,1778257839000,-300.0,0.00011176,2]
[421872178,1778257839000,-2075.92186685,0.00011,2]
[421872180,1778257839000,-154.0132981,0.00011,2]
[421872265,1778257840000,-503.3,0.00011232,2]
[421872283,1778257840000,-600.0,0.00011456,2]
[421872254,1778257840000,-1610.63,0.00011232,2]
[421872262,1778257840000,-500.0,0.00011232,2]
[421872252,1778257840000,-500.0,0.00011232,2]
[421872255,1778257840000,-500.0,0.00011232,2]
[421872253,1778257840000,-790.35,0.00011232,2]
[421872251,1778257840000,-620.56,0.00011232,2]
[421872260,1778257840000,-1487.62,0.00011232,2]
[421872259,1778257840000,-458.69871901,0.00011232,2]
[421872269,1778257840000,-1359.66,0.00011232,2]
[421872257,1778257840000,-500.0,0.00011232,2]
[421872275,1778257840000,-500.0,0.00011232,2]
[421872299,1778257840000,-500.0,0.00011506,2]
[421872271,1778257840000,-922.51,0.00011232,2]
[421872263,1778257840000,-1425.53,0.00011232,2]
[421872267,1778257840000,-500.0,0.00011232,2]
[421872281,1778257840000,-200.0,0.00011358,2]
[421872286,1778257840000,-500.0,0.00011506,2]
[421872288,1778257840000,-500.0,0.00011506,2]
[421872277,1778257840000,-500.0,0.00011232,2]
[421872279,1778257840000,-500.0,0.00011232,2]
[421872285,1778257840000,-500.0,0.00011506,2]
[421872291,1778257840000,-500.0,0.00011506,2]
[421872298,1778257840000,-500.0,0.00011506,2]
[421872290,1778257840000,-500.0,0.00011506,2]
[421872250,1778257840000,-500.0,0.00011232,2]
[421872273,1778257840000,-500.0,0.00011232,2]
[421872258,1778257840000,-500.0,0.00011232,2]
[421872224,1778257840000,-500.0,0.00011232,2]
[421872249,1778257840000,-759.64,0.00011232,2]
[421872300,1778257840000,-500.0,0.00011506,2]
[421872222,1778257840000,-525.29,0.00011232,2]
[421872221,1778257840000,-842.7674,0.00011232,2]
[421872223,1778257840000,-500.0,0.00011232,2]
[421872226,1778257840000,-500.0,0.00011232,2]
[421872225,1778257840000,-500.0,0.00011232,2]
[421872228,1778257840000,-500.0,0.00011232,2]
[421872227,1778257840000,-565.24,0.00011232,2]
[421872229,1778257840000,-500.0,0.00011232,2]
[421872232,1778257840000,-1281.13,0.00011232,2]
[421872231,1778257840000,-500.0,0.00011232,2]
[421872234,1778257840000,-1058.63,0.00011232,2]
[421872233,1778257840000,-425.7229637,0.00011232,2]
[421872256,1778257840000,-500.0,0.00011232,2]
[421872235,1778257840000,-1367.21,0.00011232,2]
[421872236,1778257840000,-500.0,0.00011232,2]
[421872240,1778257840000,-7651.3,0.00011232,2]
[421872239,1778257840000,-799.81,0.00011232,2]
[421872238,1778257840000,-500.0,0.00011232,2]
[421872237,1778257840000,-500.0,0.00011232,2]
[421872244,1778257840000,-500.0,0.00011232,2]
[421872245,1778257840000,-500.0,0.00011232,2]
[421872243,1778257840000,-1468.56,0.00011232,2]
[421872241,1778257840000,-500.0,0.00011232,2]
[421872242,1778257840000,-500.0,0.00011232,2]
[421872246,1778257840000,-500.0,0.00011232,2]
[421872247,1778257840000,-500.0,0.00011232,2]
[421872248,1778257840000,-518.01,0.00011232,2]
[421872230,1778257840000,-500.0,0.00011232,2]
[421872293,1778257840000,-500.0,0.00011506,2]
[421872306,1778257840000,-500.0,0.00011506,2]
[421872297,1778257840000,-500.0,0.00011506,2]
[421872344,1778257840000,-7651.3,0.00011506,2]
[421872358,1778257840000,-500.0,0.00011506,2]
[421872348,1778257840000,-500.0,0.00011506,2]
[421872346,1778257840000,-500.0,0.00011506,2]
[421872342,1778257840000,-799.81,0.00011506,2]
[421872360,1778257840000,-518.01,0.00011506,2]
[421872361,1778257840000,-759.64,0.00011506,2]
[421872364,1778257840000,-500.0,0.00011506,2]
[421872366,1778257840000,-1610.63,0.00011506,2]
[421872365,1778257840000,-790.35,0.00011506,2]
[421872362,1778257840000,-500.0,0.00011506,2]
[421872367,1778257840000,-500.0,0.00011506,2]
[421872370,1778257840000,-500.0,0.00011506,2]
[421872363,1778257840000,-620.56,0.00011506,2]
[421872371,1778257840000,-500.0,0.00011506,2]
[421872369,1778257840000,-500.0,0.00011506,2]
[421872372,1778257840000,-1487.62,0.00011506,2]
[421872375,1778257840000,-503.3,0.00011506,2]
[421872373,1778257840000,-500.0,0.00011506,2]
[421872374,1778257840000,-1425.53,0.00011506,2]
[421872376,1778257840000,-500.0,0.00011506,2]
[421872378,1778257840000,-922.51,0.00011506,2]
[421872296,1778257840000,-500.0,0.00011506,2]
[421872377,1778257840000,-1359.66,0.00011506,2]
[421872381,1778257840000,-500.0,0.00011506,2]
[421872380,1778257840000,-500.0,0.00011506,2]
[421872382,1778257840000,-500.0,0.00011506,2]
[421872340,1778257840000,-500.0,0.00011506,2]
[421872338,1778257840000,-500.0,0.00011506,2]
[421872379,1778257840000,-500.0,0.00011506,2]
[421872356,1778257840000,-378.92166544,0.00011506,2]
[421872354,1778257840000,-500.0,0.00011506,2]
[421872295,1778257840000,-500.0,0.00011506,2]
[421872292,1778257840000,-500.0,0.00011506,2]
[421872307,1778257840000,-500.0,0.00011506,2]
[421872302,1778257840000,-500.0,0.00011506,2]
[421872309,1778257840000,-500.0,0.00011506,2]
[421872310,1778257840000,-500.0,0.00011506,2]
[421872312,1778257840000,-842.7674,0.00011506,2]
[421872308,1778257840000,-500.0,0.00011506,2]
[421872311,1778257840000,-500.0,0.00011506,2]
[421872313,1778257840000,-525.29,0.00011506,2]
[421872303,1778257840000,-500.0,0.00011506,2]
[421872305,1778257840000,-500.0,0.00011506,2]
[421872314,1778257840000,-500.0,0.00011506,2]
[421872294,1778257840000,-500.0,0.00011506,2]
[421872318,1778257840000,-500.0,0.00011506,2]
[421872315,1778257840000,-500.0,0.00011506,2]
[421872336,1778257840000,-500.0,0.00011506,2]
[421872324,1778257840000,-500.0,0.00011506,2]
[421872322,1778257840000,-500.0,0.00011506,2]
[421872332,1778257840000,-1058.63,0.00011506,2]
[421872350,1778257840000,-1468.56,0.00011506,2]
[421872334,1778257840000,-1367.21,0.00011506,2]
[421872316,1778257840000,-500.0,0.00011506,2]
[421872330,1778257840000,-1281.13,0.00011506,2]
[421872326,1778257840000,-500.0,0.00011506,2]
[421872352,1778257840000,-500.0,0.00011506,2]
[421872320,1778257840000,-565.24,0.00011506,2]
[421872328,1778257840000,-500.0,0.00011506,2]
[421872421,1778257841000,-1367.21,0.0001178,2]
[421872411,1778257841000,-500.0,0.0001178,2]
[421872412,1778257841000,-500.0,0.0001178,2]
[421872416,1778257841000,-500.0,0.0001178,2]
[421872415,1778257841000,-500.0,0.0001178,2]
[421872417,1778257841000,-500.0,0.0001178,2]
[421872414,1778257841000,-565.24,0.0001178,2]
[421872413,1778257841000,-209.5541725,0.0001178,2]
[421872422,1778257841000,-500.0,0.0001178,2]
[421872408,1778257841000,-525.29,0.0001178,2]
[421872418,1778257841000,-500.0,0.0001178,2]
[421872426,1778257841000,-7651.3,0.0001178,2]
[421872419,1778257841000,-1281.13,0.0001178,2]
[421872424,1778257841000,-500.0,0.0001178,2]
[421872434,1778257841000,-759.64,0.0001178,2]
[421872427,1778257841000,-500.0,0.0001178,2]
[421872423,1778257841000,-500.0,0.0001178,2]
[421872429,1778257841000,-1468.56,0.0001178,2]
[421872428,1778257841000,-500.0,0.0001178,2]
[421872430,1778257841000,-500.0,0.0001178,2]
[421872431,1778257841000,-500.0,0.0001178,2]
[421872409,1778257841000,-842.7674,0.0001178,2]
[421872420,1778257841000,-1058.63,0.0001178,2]
[421872410,1778257841000,-500.0,0.0001178,2]
[421872389,1778257841000,-500.0,0.0001178,2]
[421872406,1778257841000,-500.0,0.0001178,2]
[421872433,1778257841000,-518.01,0.0001178,2]
[421872383,1778257841000,-390.73347668,0.00011764,2]
[421872387,1778257841000,-500.0,0.0001178,2]
[421872386,1778257841000,-500.0,0.0001178,2]
[421872385,1778257841000,-500.0,0.0001178,2]
[421872384,1778257841000,-326.4122,0.0001178,2]
[421872388,1778257841000,-500.0,0.0001178,2]
[421872390,1778257841000,-500.0,0.0001178,2]
[421872398,1778257841000,-456.87351183,0.0001178,2]
[421872399,1778257841000,-500.0,0.0001178,2]
[421872400,1778257841000,-500.0,0.0001178,2]
[421872401,1778257841000,-500.0,0.0001178,2]
[421872393,1778257841000,-500.0,0.0001178,2]
[421872391,1778257841000,-500.0,0.0001178,2]